lending/lending_fUSD_20260104
["ID","MTS","AMOUNT","RATE_DAILY","PERIOD"]
[400393877,1767505846164,-18735.46746875,0.000431,120]
[400393878,1767505846177,-130680.97680946,0.000431,120]
[400393879,1767505846189,-77937.20033751,0.000431,120]
[400393880,1767505846217,-461.74759373,0.000431,120]
[400393881,1767505846332,-1951.93892239,0.000431,120]
[400393882,1767505846346,-2983.4383552,0.000431,120]
[400393883,1767505846443,-5300.13672791,0.000431,120]
[400393884,1767505846456,-3729.01848402,0.000431,120]
[400393885,1767505846470,-2437.37666779,0.000431,120]
[400393897,1767506423846,186.43,0.00013699,2]
[400393921,1767506709135,195.0,0.00022206,120]
[400393922,1767506837133,-186.43,0.00020187,2]
[400393923,1767506837155,-250.0,0.00022206,2]
[400393924,1767506837177,-163.84442461,0.00022206,2]
[400393925,1767506837198,-176.40196794,0.00026676,2]
[400393926,1767506898277,555.84440197,0.00043252,120]
[400393927,1767506949105,-10.02803206,0.00026676,2]
[400393928,1767506949130,-151.0,0.00028208,2]
[400393929,1767506949153,-151.0,0.00028212,2]
[400393930,1767506949178,-186.43,0.00033165,2]
[400393931,1767506949204,-293.55836794,0.00035397,2]
[400393932,1767506970093,-208.44163206,0.00035397,2]
[400393933,1767506970115,-361.04342329,0.00037454,2]
[400393986,1767507032259,-565.39403671,0.00038451,2]
[400393987,1767507032272,-879.1913564,0.00038451,2]
[400393988,1767507032371,-497.76627144,0.00038451,2]
[400393989,1767507032384,-991.64833545,0.00038451,2]
[400393990,1767507032394,-1437.28,0.00039596,2]
[400393991,1767507032404,-1600.0,0.00039624,5]
[400393992,1767507032414,-166.66,0.00039625,30]
[400393993,1767507032424,-186.43,0.00039654,2]
[400393994,1767507032434,-329.1245,0.00039773,2]
[400393996,1767507032444,-244.75729565,0.00039799,31]
[400393997,1767507032454,-174855.26322842,0.000398,2]
[400393998,1767507032466,-396.66942327,0.000398,2]
[400393999,1767507032478,-433.60596329,0.000398,2]
[400394000,1767507032490,-8062.10780649,0.000398,2]
[400394001,1767507032506,-278.02254331,0.000398,2]
[400394002,1767507032522,-568.23833073,0.00039799,31]
[400394003,1767507032532,-1763.84226651,0.000398,2]
[400394134,1767507038359,-170.4,0.00029012,2]
[400394135,1767507038369,-500.0,0.00039799,31]
[400394136,1767507038379,-559.45519699,0.00039799,31]
[400394137,1767507038389,-638.75187004,0.000398,2]
[400394138,1767507038402,-19862.09930661,0.000398,2]
[400394139,1767507038413,-400.0,0.000398,2]
[400394140,1767507038425,-3050.15588522,0.000398,2]
[400394141,1767507038437,-13723.88653025,0.000398,2]
[400394142,1767507038449,-594.83338395,0.000398,2]
[400394143,1767507038461,-419.12847376,0.000398,2]
[400394144,1767507038472,-496.1,0.000398,2]
[400394145,1767507038484,-6599.99875584,0.000398,2]
[400394245,1767507040508,-78319.81738939,0.000398,2]
[400394246,1767507040523,-1847.29706136,0.000398,2]
[400394247,1767507040535,-495.68719811,0.000398,2]
[400394248,1767507040546,-843.67086652,0.000398,2]
[400394249,1767507040558,-459.875,0.000398,2]
[400394250,1767507040569,-56338.72825719,0.000398,2]
[400394251,1767507040580,-357.7855232,0.000398,2]
[400394252,1767507040592,-746.71567383,0.000398,2]
[400394253,1767507040603,-730.0,0.000398,2]
[400394254,1767507040614,-4514.51,0.000398,2]
[400394255,1767507040625,-936.43138001,0.000398,2]
[400394256,1767507040636,-538.33663458,0.000398,2]
[400394257,1767507040648,-801.54783843,0.000398,2]
[400394258,1767507040665,-1212.11633512,0.000398,2]
[400394259,1767507040686,-2141.6582257,0.000398,2]
[400394260,1767507040699,-49820.2164645,0.000398,2]
[400394261,1767507040710,-1427.900885,0.000398,2]
[400394262,1767507040745,-4237.64394581,0.000398,2]
[400394263,1767507040760,-732.18335078,0.000398,2]
[400394265,1767507044177,-10.7828362,0.000398,2]
[400394266,1767507044189,-263.72617094,0.000398,2]
[400394267,1767507044201,-45436.74868816,0.000398,2]
[400394268,1767507044213,-521.7277719,0.000398,2]
[400394269,1767507044224,-827.30124096,0.000398,2]
[400394270,1767507044235,-535.44798845,0.000398,2]
[400394271,1767507044300,-244.68671023,0.000398,2]
[400394272,1767507044317,-450.2723017,0.000398,2]
[400394273,1767507044341,-341889.75989115,0.000398,2]
[400394274,1767507044355,-6441.8375492,0.000398,2]
[400394275,1767507044366,-2170.09,0.000398,2]
[400394276,1767507044381,-364.03490748,0.000398,2]
[400394277,1767507044392,-8432.85403011,0.000398,2]
[400394278,1767507045183,-314.93,0.000398,2]
[400394279,1767507045195,-2727.89505997,0.000398,2]
[400394280,1767507045241,-1908.95357192,0.000398,2]
[400394281,1767507045253,-267.83086906,0.000398,2]
[400394283,1767507046278,-466.71435071,0.000398,2]
[400394284,1767507046291,-148647.81859537,0.000398,2]
[400394285,1767507046301,-551.957,0.0003983,2]
[400394286,1767507046311,-1199.0,0.0003983,2]
[400394287,1767507046321,-176.65448903,0.00039873,2]
[400394288,1767507046331,-243.342,0.00039873,2]
[400394289,1767507046341,-150.0,0.00039873,2]
[400394290,1767507046350,-150.876,0.00039873,2]
[400394291,1767507046360,-151.0,0.00039873,2]
[400394292,1767507046371,-437.303,0.00039899,56]
[400394293,1767507046380,-274.0,0.000399,5]
[400394294,1767507046390,-354.46066086,0.00039973,2]
[400394295,1767507046400,-500.0,0.00040073,5]
[400394296,1767507046410,-190.5,0.00040135,20]
[400394297,1767507046419,-354.46066086,0.00040405,28]
[400394298,1767507046429,-166.66,0.00040459,30]
[400394299,1767507046439,-200.0,0.00040619,2]
[400394300,1767507046450,-354.46066086,0.00040838,28]
[400394301,1767507046460,-164.29,0.000409,30]
[400394302,1767507046469,-354.46066086,0.0004127,28]
[400394303,1767507046479,-166.66,0.00041294,30]
[400394304,1767507046493,-354.46066086,0.00041703,28]
[400394305,1767507046503,-150.0,0.00041774,2]
[400394306,1767507046512,-1595.86,0.00042117,2]
[400394307,1767507046522,-1205.86,0.00042119,2]
[400394308,1767507046532,-166.66,0.00042128,30]
[400394309,1767507046542,-354.46066086,0.00042135,28]
[400394310,1767507046552,-327.0,0.00042439,5]
[400394311,1767507046562,-1000.0,0.00042499,2]
[400394312,1767507046571,-354.46066086,0.00042568,28]
[400394313,1767507046582,-500.0,0.00042598,120]
[400394314,1767507046591,-362.19053749,0.00042598,120]
[400394315,1767507046601,-201.17745494,0.00042599,7]
[400394316,1767507046611,-150.0,0.00042873,2]
[400394317,1767507046620,-166.66,0.00042962,30]
[400394318,1767507046630,-500.0,0.00042973,10]
[400394319,1767507046639,-500.0,0.00042973,10]
[400394320,1767507046649,-500.0,0.00042973,10]
[400394321,1767507046661,-500.0,0.00042973,10]
[400394322,1767507046672,-500.0,0.00042973,10]
[400394323,1767507046682,-500.0,0.00042973,10]
[400394324,1767507046691,-153.70959378,0.00043,2]
[400394325,1767507046702,-770.96,0.00043,120]
[400394326,1767507046712,-1314.37206763,0.00043,2]
[400394327,1767507046722,-354.46066086,0.00043,28]
[400394328,1767507046732,-155.001642,0.00043059,2]
[400394329,1767507046742,-20883.3002829,0.00043059,2]
[400394330,1767507046751,-984.3313638,0.00043059,2]
[400394332,1767507046760,-265.99798074,0.00043076,2]
[400394333,1767507046770,-153.70959377,0.00043076,2]
[400394334,1767507046779,-1314.37206763,0.00043076,2]
[400394335,1767507046789,-164.0716936,0.0004309,120]
[400394336,1767507046799,-203.12272896,0.00043099,31]
[400394337,1767507046808,-175.63937265,0.00043099,31]
[400394338,1767507046817,-56887.46729128,0.000431,120]
[400394339,1767507046830,-1174.3244468,0.000431,120]
[400394340,1767507046872,-14.40220848,0.000431,120]
[400394341,1767507046884,-1401.12127199,0.000431,120]
[400394342,1767507046895,-766.26137963,0.000431,120]
[400394343,1767507046907,-1031.79579359,0.000431,120]
[400394428,1767507546891,159.11231596,0.00043252,60]
[400394429,1767507548735,53893.38658573,0.00043252,60]
[400394430,1767507605407,-160.48789122,0.00043263,30]
[400394431,1767507605478,-100000.0,0.00043263,30]
[400394432,1767507605551,-333.29889328,0.00043263,30]
[400394433,1767507605614,-669.36596644,0.00043263,30]
[400394434,1767507605676,-153.99980738,0.00043263,30]
[400394435,1767507605738,-1283.97882893,0.00043263,30]
[400394436,1767507605800,-2123.03311685,0.00043263,30]
[400394437,1767507605870,-1424.7830978,0.00043263,30]
[400394438,1767507605938,-261.79648497,0.00043263,30]
[400394439,1767507606003,-444.56216935,0.00043263,30]
[400394440,1767507606068,-1876.65496904,0.00043263,30]
[400394441,1767507606137,-752.23,0.00043263,30]
[400394442,1767507606201,-272.6,0.00043263,30]
[400394443,1767507606267,-245.3213923,0.00043263,30]
[400394444,1767507606338,-904078.16204661,0.00043263,30]
[400394445,1767507606415,-1000.0,0.00043263,30]
[400394446,1767507606491,-25170.64934597,0.00043263,30]
[400394447,1767507606565,-358.5707835,0.00043263,30]
[400394448,1767507606640,-265.7944652,0.00043263,35]
[400394449,1767507606718,-4000.0,0.00043263,31]
[400394450,1767507606798,-2999.01622484,0.00043263,31]
[400394451,1767507606873,-1733702.99281769,0.00043263,30]
[400394452,1767507606944,-5000.0,0.00043263,30]
[400394453,1767507607012,-13586.40653316,0.00043263,30]
[400394454,1767507607077,-23961.89,0.00043263,30]
[400394455,1767507607140,-500.98695582,0.00043263,30]
[400394456,1767507607205,-500.0,0.00043263,30]
[400394457,1767507607272,-500.0,0.00043263,30]
[400394458,1767507607342,-500.0,0.00043263,30]
[400394459,1767507607414,-500.0,0.00043263,30]
[400394460,1767507607490,-500.0,0.00043263,30]
[400394461,1767507607560,-446.0,0.00043263,30]
[400394462,1767507607627,-500.0,0.00043263,30]
[400394463,1767507607698,-500.0,0.00043263,30]
[400394464,1767507607768,-500.0,0.00043263,30]
[400394465,1767507607838,-500.0,0.00043263,30]
[400394466,1767507607908,-167.68255518,0.00043263,30]
[400394467,1767507608199,-13736.20301939,0.00043263,30]
[400394468,1767507608273,-143213.9937,0.00043263,30]
[400394469,1767507608351,-170.9239004,0.00043263,30]
[400394470,1767507608428,-13940.0,0.00043263,30]
[400394471,1767507608504,-1662850.21613651,0.00043263,30]
[400394472,1767507608580,-471.11200782,0.00043263,30]
[400394473,1767507608655,-795.76810154,0.00043263,56]
[400394474,1767507608733,-858.55174158,0.00043263,30]
[400394475,1767507608811,-754.14344008,0.00043263,30]
[400394476,1767507608889,-179116.34843953,0.00043263,30]
[400394477,1767507608960,-67495.85489442,0.00043263,30]
[400394478,1767507609031,-6171.42503015,0.00043263,30]
[400394479,1767507609114,-484.54711405,0.00043263,30]
[400394480,1767507609191,-1100.0,0.00043263,30]
[400394481,1767507609388,945466.61341425,0.00043263,90]
[400394482,1767507624569,250.0,0.00017,2]
[400394486,1767507682603,199882.0,0.00043263,30]
[400394506,1767507908783,667829.74461709,0.00018,2]
[400394555,1767508085769,1000.0,0.000135,2]
[400394556,1767508113044,169506.77919103,0.00016,4]
[400394575,1767508145143,-245.2214448,0.000182,2]
[400394576,1767508145165,-306.0,0.000182,2]
[400394577,1767508145185,-195.0,0.000182,2]
[400394578,1767508145206,-154.1567459,0.00018907,2]
[400394579,1767508145226,-250.0,0.00018907,2]
[400394580,1767508145246,-151.31815034,0.00018907,15]
[400394581,1767508145266,-357.57046957,0.0001901,7]
[400394582,1767508145286,-195.0,0.00019613,2]
[400394583,1767508145306,-385.83882429,0.00019613,2]
[400394584,1767508145326,-189.61763526,0.0001992,2]
[400394585,1767508145346,-822.4765953,0.0001995,15]
[400394586,1767508145365,-615.58845985,0.0002,5]
[400394587,1767508145385,-300.0,0.00020019,2]
[400394588,1767508145405,-195.0,0.0002002,2]
[400394589,1767508145425,-150.17827166,0.0002002,2]
[400394590,1767508145446,-300.0,0.0002002,2]
[400394591,1767508145467,-315.78693653,0.0002002,2]
[400394592,1767508145487,-224.7055985,0.0002002,2]
[400394594,1767508156090,-171.65454907,0.0002002,2]
[400394611,1767508170139,-2157.14446955,0.0002002,2]
[400394612,1767508170164,-300.0,0.0002002,2]
[400394613,1767508170185,-250.0,0.0002002,2]
[400394614,1767508170206,-195.0,0.0002002,2]
[400394615,1767508170231,-151.08,0.00021026,2]
[400394616,1767508170252,-151.0,0.00021589,2]
[400394617,1767508170272,-151.08,0.00022133,2]
[400394618,1767508170292,-151.0,0.00022862,2]
[400394619,1767508170312,-151.0,0.00023171,2]
[400394620,1767508170332,-151.0,0.00023171,2]
[400394621,1767508170353,-151.0,0.00023171,2]
[400394622,1767508170373,-151.0,0.00023171,2]
[400394623,1767508170393,-151.0,0.00023171,2]
[400394624,1767508170414,-151.0,0.00023171,2]
[400394625,1767508170435,-151.0,0.00023171,2]
[400394626,1767508170456,-151.0,0.00023171,2]
[400394627,1767508170476,-151.0,0.00023171,2]
[400394628,1767508170497,-151.0,0.00023171,2]
[400394629,1767508170518,-151.0,0.00023171,2]
[400394630,1767508170540,-151.0,0.00023171,2]
[400394631,1767508170561,-151.0,0.00023171,2]
[400394632,1767508170582,-151.0,0.00023171,2]
[400394633,1767508170602,-151.0,0.00023171,2]
[400394634,1767508170623,-151.0,0.00023171,2]
[400394635,1767508170648,-151.0,0.00023171,2]
[400394636,1767508170668,-151.0,0.00023171,2]
[400394637,1767508170688,-151.0,0.00023171,2]
[400394638,1767508170708,-151.0,0.00023171,2]
[400394639,1767508170728,-300.0,0.00023184,2]
[400394640,1767508170749,-1200.0,0.00023184,2]
[400394641,1767508170769,-4214.30356585,0.00023185,2]
[400394672,1767508231382,-361.0,0.00023185,2]
[400394677,1767508231397,-4768.69138955,0.00023185,2]
[400394678,1767508231408,-151.08,0.00023239,2]
[400394679,1767508231418,-151.0,0.00023391,2]
[400394680,1767508231428,-151.0,0.000239,2]
[400394681,1767508231438,-163.96,0.00024,2]
[400394683,1767508231447,-153.7282922,0.00024034,32]
[400394684,1767508231458,-151.08,0.00024346,2]
[400394685,1767508231468,-1200.0,0.00024998,2]
[400394686,1767508231478,-810.0,0.00024998,2]
[400394687,1767508231487,-500.0,0.00024999,2]
[400394688,1767508231497,-528.24998865,0.00024999,2]
[400394689,1767508231508,-528.24998865,0.00024999,2]
[400394690,1767508231518,-149.79419407,0.00024999,2]
[400394691,1767508231531,-378.45579458,0.00024999,2]
[400394692,1767508231541,-528.24998865,0.00024999,2]
[400394693,1767508231550,-528.24998865,0.00024999,2]
[400394694,1767508231560,-292.61477209,0.00024999,2]
[400394695,1767508231571,-235.63521656,0.00024999,2]
[400394696,1767508231581,-398.83607407,0.00024999,2]
[400394697,1767508231593,-129.41391458,0.00024999,2]
[400394698,1767508231603,-528.24998865,0.00024999,2]
[400394699,1767508231613,-528.24998865,0.00024999,2]
[400394700,1767508231623,-528.24998865,0.00024999,2]
[400394701,1767508231633,-134.59368798,0.00024999,2]
[400394703,1767508231645,-302.28095713,0.00024999,2]
[400394705,1767508231656,-91.37534354,0.00024999,2]
[400394707,1767508231665,-218.93465646,0.00024999,2]
[400394709,1767508231677,-309.31533219,0.00024999,2]
[400394710,1767508231687,-528.24998865,0.00024999,2]
[400394711,1767508231696,-528.24998865,0.00024999,2]
[400394713,1767508231706,-4.03069051,0.00024999,2]
[400394715,1767508231718,-265.00000012,0.00024999,2]
[400394717,1767508231730,-259.21929802,0.00024999,2]
[400394718,1767508231740,-438.17219198,0.00024999,2]
[400394719,1767508231751,-90.07779667,0.00024999,2]
[400394720,1767508231762,-528.24998865,0.00024999,2]
[400394721,1767508231776,-99.05795212,0.00024999,2]
[400394722,1767508231788,-429.19203653,0.00024999,2]
[400394723,1767508231799,-528.24998865,0.00024999,2]
[400394724,1767508231810,-528.24998865,0.00024999,2]
[400394725,1767508231819,-528.24998865,0.00024999,2]
[400394726,1767508231829,-528.24998865,0.00024999,2]
[400394727,1767508231839,-528.24998865,0.00024999,2]
[400394728,1767508231849,-528.24998865,0.00024999,2]
[400394729,1767508231859,-528.24998865,0.00024999,2]
[400394730,1767508231869,-528.24998865,0.00024999,2]
[400394731,1767508231879,-528.24998865,0.00024999,2]
[400394732,1767508231888,-528.24998865,0.00024999,2]
[400394733,1767508231898,-528.24998865,0.00024999,2]
[400394734,1767508231908,-528.24998865,0.00024999,2]
[400394735,1767508231918,-121.68934267,0.00024999,2]
[400394736,1767508231930,-406.56064598,0.00024999,2]
[400394737,1767508231940,-528.24998865,0.00024999,2]
[400394738,1767508231951,-528.24998865,0.00024999,2]
[400394739,1767508231960,-528.24998865,0.00024999,2]
[400394740,1767508231970,-528.24998865,0.00024999,2]
[400394741,1767508231980,-528.24998865,0.00024999,2]
[400394742,1767508231990,-528.24998865,0.00024999,2]
[400394743,1767508232000,-528.24998865,0.00024999,2]
[400394744,1767508232010,-528.24998865,0.00024999,2]
[400394745,1767508232021,-528.24998865,0.00024999,2]
[400394746,1767508232030,-528.24998865,0.00024999,2]
[400394747,1767508232040,-528.24998865,0.00024999,2]
[400394748,1767508232049,-528.24998865,0.00024999,2]
[400394749,1767508232059,-528.24998865,0.00024999,2]
[400394750,1767508232069,-528.24998865,0.00024999,2]
[400394751,1767508232080,-528.24998865,0.00024999,2]
[400394752,1767508232090,-528.24998865,0.00024999,2]
[400394753,1767508232104,-528.24998865,0.00024999,2]
[400394754,1767508232113,-528.24998865,0.00024999,2]
[400394755,1767508232123,-528.24998865,0.00024999,2]
[400394756,1767508232138,-528.24998865,0.00024999,2]
[400394757,1767508232148,-528.24998865,0.00024999,2]
[400394758,1767508232157,-528.24998865,0.00024999,2]
[400394759,1767508232169,-528.24998865,0.00024999,2]
[400394760,1767508232179,-528.24998865,0.00024999,2]
[400394761,1767508232189,-528.24998865,0.00024999,2]
[400394762,1767508232199,-528.24998865,0.00024999,2]
[400394763,1767508232209,-528.24998865,0.00024999,2]
[400394764,1767508232218,-528.24998865,0.00024999,2]
[400394765,1767508232228,-528.24998865,0.00024999,2]
[400394766,1767508232238,-528.24998865,0.00024999,2]
[400394767,1767508232247,-528.24998865,0.00024999,2]
[400394768,1767508232257,-528.24998865,0.00024999,2]
[400394769,1767508232267,-528.24998865,0.00024999,2]
[400394770,1767508232276,-342.6602139,0.00024999,2]
[400394771,1767508232287,-513.45898898,0.00024999,2]
[400394772,1767508232296,-513.45898898,0.00024999,2]
[400394773,1767508232306,-513.45898898,0.00024999,2]
[400394774,1767508232316,-513.45898898,0.00024999,2]
[400394775,1767508232325,-513.45898898,0.00024999,2]
[400394776,1767508232335,-513.45898898,0.00024999,2]
[400394777,1767508232349,-513.45898898,0.00024999,2]
[400394778,1767508232359,-513.45898898,0.00024999,2]
[400394779,1767508232368,-513.45898898,0.00024999,2]
[400394780,1767508232378,-513.45898898,0.00024999,2]
[400394781,1767508232388,-513.45898898,0.00024999,2]
[400394782,1767508232398,-513.45898898,0.00024999,2]
[400394783,1767508232407,-513.45898898,0.00024999,2]
[400394784,1767508232418,-513.45898898,0.00024999,2]
[400394785,1767508232428,-513.45898898,0.00024999,2]
[400394786,1767508232438,-513.45898898,0.00024999,2]
[400394787,1767508232448,-513.45898898,0.00024999,2]
[400394788,1767508232457,-513.45898898,0.00024999,2]
[400394789,1767508232467,-513.45898898,0.00024999,2]
[400394790,1767508232478,-513.45898898,0.00024999,2]
[400394791,1767508232487,-513.45898898,0.00024999,2]
[400394792,1767508232497,-513.45898898,0.00024999,2]
[400394793,1767508232506,-513.45898898,0.00024999,2]
[400394794,1767508232516,-513.45898898,0.00024999,2]
[400394795,1767508232526,-91898.92564708,0.00025,2]
[400394796,1767508232539,-500.0,0.00025273,2]
[400394797,1767508232549,-151.08,0.00025453,2]
[400394798,1767508232559,-500.0,0.00025547,2]
[400394799,1767508232569,-250.0,0.00026453,2]
[400394800,1767508232579,-151.08,0.00026559,2]
[400394801,1767508232588,-760.0,0.00027204,2]
[400394802,1767508232598,-151.08,0.00027666,2]
[400394803,1767508232609,-151.08,0.00028773,2]
[400394804,1767508232619,-217.63,0.00028912,2]
[400394805,1767508232630,-156.84931012,0.00029161,50]
[400394806,1767508232639,-369.10881266,0.00029179,2]
[400394807,1767508232649,-151.08,0.00029879,2]
[400394808,1767508232659,-151.08,0.00030986,2]
[400394810,1767508232669,-122.6678076,0.00032093,2]
[400394811,1767508232683,-28.4121924,0.00032093,2]
[400394812,1767508232692,-2366.75085938,0.0003287,2]
[400394813,1767508232702,-151.08,0.00033199,2]
[400394814,1767508232712,-337.07,0.00033452,120]
[400394815,1767508232722,-1000.0,0.00033588,2]
[400394816,1767508232731,-500.0,0.00033766,20]
[400394817,1767508232741,-200.0,0.00033885,2]
[400394818,1767508232751,-160.54520279,0.00034288,67]
[400394819,1767508232760,-151.08,0.00034306,2]
[400394820,1767508232770,-1483.43208025,0.00035404,2]
[400394821,1767508232782,-1403.84725605,0.00035404,2]
[400394822,1767508232794,-803.70972726,0.00035404,2]
[400394823,1767508232805,-297.05507805,0.00035404,2]
[400394824,1767508232817,-1366.96461276,0.00035404,2]
[400394830,1767508237499,-518.98264,0.00035404,2]
[400394831,1767508237512,-312.46428176,0.00035404,2]
[400394832,1767508237525,-445.21432387,0.00035404,2]
[400394833,1767508237536,-1.28405252,0.00035412,2]
[400394834,1767508237549,-149.79594748,0.00035412,2]
[400394835,1767508237559,-735.967,0.00035475,42]
[400394836,1767508237569,-48.91666814,0.00035475,42]
[400394837,1767508237582,-164.53733186,0.00035475,42]
[400394838,1767508237592,-405.18027966,0.00035616,86]
[400394839,1767508237602,-599.592,0.00035616,7]
[400394840,1767508237612,-579.87603652,0.00035841,2]
[400394841,1767508237630,-1658.57091694,0.00035841,2]
[400394842,1767508237642,-503.93718342,0.00035841,2]
[400394843,1767508237746,-2955.91586312,0.00035841,2]
[400394844,1767508237756,-263.96841009,0.00036172,2]
[400394845,1767508237766,-999.0,0.00036273,3]
[400394846,1767508237776,-151.08,0.00036519,2]
[400394847,1767508237786,-263.96841008,0.00036931,2]
[400394848,1767508237796,-151.08,0.00037626,2]
[400394849,1767508237806,-337.07,0.00037634,120]
[400394851,1767508237816,-263.96841008,0.00037689,2]
[400394853,1767508237826,-1000.0,0.00037787,2]
[400394854,1767508237837,-9999.99,0.00037873,2]
[400394856,1767508237849,-4999.99,0.00037873,30]
[400394857,1767508237859,-150.99,0.00037873,2]
[400394858,1767508237869,-11740.57,0.00037873,10]
[400394859,1767508237879,-2818.14,0.00037873,2]
[400394860,1767508237888,-6524.37,0.00037873,2]
[400394861,1767508237898,-5205.78,0.00037873,2]
[400394862,1767508237908,-499.99,0.00037873,2]
[400394863,1767508237920,-9999.99,0.00037873,2]
[400394864,1767508237930,-1602.88,0.00037873,2]
[400394865,1767508237940,-150.99,0.00037873,30]
[400394866,1767508237950,-347.47,0.00037873,2]
[400394867,1767508237960,-3276.76,0.00037873,2]
[400394868,1767508237969,-999.99,0.00037873,2]
[400394869,1767508237979,-263.96841008,0.00038448,2]
[400394870,1767508237989,-3021.0331,0.00038658,10]
[400394871,1767508237999,-474.5,0.00038676,30]
[400394872,1767508238013,-1000.0,0.00038676,2]
[400394873,1767508238023,-5436.68,0.00038678,2]
[400394874,1767508238034,-151.08,0.00038732,2]
[400394875,1767508238044,-474.5,0.0003895,30]
[400394876,1767508238054,-676.08941872,0.00038956,2]
[400394877,1767508238063,-676.08941872,0.00038956,2]
[400394878,1767508238073,-10717.86,0.00039,30]
[400394879,1767508238084,-263.96841008,0.00039207,2]
[400394880,1767508238096,-474.5,0.00039224,30]
[400394881,1767508238107,-164.73736892,0.00039414,84]
[400394882,1767508238116,-474.5,0.00039498,30]
[400394883,1767508238126,-176.65448903,0.000397,2]
[400394884,1767508238138,-474.52,0.00039772,30]
[400394885,1767508238148,-150.0,0.00039781,7]
[400394886,1767508238158,-150.00000001,0.00039781,7]
[400394887,1767508238168,-269.19244789,0.00039781,7]
[400394888,1767508238179,-150.0,0.00039781,7]
[400394889,1767508238188,-150.0,0.00039781,7]
[400394890,1767508238198,-500.0,0.00039799,120]
[400394891,1767508238208,-505.51730535,0.00039799,120]
[400394892,1767508238218,-500.0,0.00039799,120]
[400394893,1767508238228,-500.0,0.00039799,120]
[400394894,1767508238238,-507.94447262,0.00039799,120]
[400394895,1767508238248,-500.0,0.00039799,120]
[400394896,1767508238258,-500.0,0.00039799,120]
[400394897,1767508238268,-156.8689085,0.00039799,120]
[400394898,1767508238278,-547.84139381,0.00039799,120]
[400394899,1767508238288,-500.0,0.00039799,30]
[400394900,1767508238298,-507.14401581,0.00039799,30]
[400394901,1767508238308,-500.0,0.00039799,45]
[400394902,1767508238317,-506.81970095,0.00039799,45]
[400394903,1767508238328,-504.4048165,0.00039799,120]
[400394904,1767508238338,-387.5524686,0.00039799,120]
[400394905,1767508238347,-380.34033659,0.000398,2]
[400394906,1767508238357,-150.89014659,0.000398,2]
[400394907,1767508238368,-151.08,0.00039839,2]
[400394908,1767508238382,-263.96841008,0.00039965,15]
[400394909,1767508238392,-572.03852483,0.00040073,5]
[400394910,1767508238402,-528.0,0.00040263,10]
[400394911,1767508238413,-217.63,0.00040477,2]
[400394912,1767508238423,-263.96841008,0.00040724,15]
[400394913,1767508238434,-151.08,0.00040946,2]
[400394914,1767508238445,-150.0,0.000412,60]
[400394915,1767508238455,-263.96841008,0.00041483,15]
[400394916,1767508238465,-221.44543499,0.00041784,7]
[400394917,1767508238475,-337.07,0.00041815,120]
[400394918,1767508238486,-1000.0,0.00041985,2]
[400394919,1767508238497,-151.08,0.00042052,2]
[400394920,1767508238507,-1326.93,0.00042141,30]
[400394921,1767508238518,-159.89,0.00042207,2]
[400394922,1767508238528,-500.0,0.00042221,120]
[400394923,1767508238538,-263.96841008,0.00042241,15]
[400394924,1767508238548,-150.0,0.00042274,30]
[400394925,1767508238558,-150.0,0.00042274,30]
[400394926,1767508238572,-462.1,0.00042274,30]
[400394927,1767508238582,-150.0,0.00042274,30]
[400394928,1767508238592,-171.15,0.00042274,30]
[400394929,1767508238602,-178.88,0.00042274,30]
[400394930,1767508238612,-178.88,0.00042274,30]
[400394931,1767508238622,-171.15,0.00042274,30]
[400394932,1767508238631,-150.0,0.00042274,30]
[400394933,1767508238643,-150.0,0.00042274,30]
[400394934,1767508238653,-178.88,0.00042274,30]
[400394935,1767508238667,-171.15,0.00042274,30]